bitfinex/quotes_ETHUSD_20260130
["timestamp","ask_amount","ask_price","bid_price","bid_amount"]
[1769781885970,0.002,2739.2,2738.2,13.21666227]
[1769781887736,16.0704706,2739.0,2737.7,0.001]
[1769781888070,14.27708966,2738.9,2737.7,0.001]
[1769781888377,1.60704706,2738.9,2737.7,13.18842828]
[1769781888537,2.58575,2739.0,2737.7,13.18842828]
[1769781888738,12.6700426,2738.8,2737.7,0.001]
[1769781889737,13.58287684,2738.8,2737.7,0.001]
[1769781889941,12.6700426,2738.8,2737.7,0.001]
[1769781890253,0.91280051,2738.9,2737.7,13.18842828]
[1769781890254,3.574358,2738.9,2737.7,13.18842828]
[1769781890454,0.4589514,2738.8,2737.7,13.18842828]
[1769781890672,0.766,2738.9,2737.7,13.18842828]
[1769781890976,0.766,2739.0,2737.7,13.18842828]
[1769781891354,13.4360426,2739.0,2737.7,13.18842828]
[1769781892281,13.5828178,2738.9,2737.7,13.18842828]
[1769781893279,12.6700426,2738.9,2737.7,13.18842828]
[1769781893463,1.43488061,2738.8,2737.7,13.18842828]
[1769781893856,0.766,2739.0,2737.7,13.18842828]
[1769781894059,0.002,2739.2,2737.9,13.18742828]
[1769781894571,0.002,2739.2,2738.1,13.18742828]
[1769781897350,0.002,2739.2,2738.5,13.18742828]
[1769781897551,0.002,2739.2,2738.5,14.50617111]
[1769781898745,0.002,2739.0,2738.5,14.50617111]
[1769781898951,0.002,2739.0,2738.5,13.18742828]
[1769781899252,0.002,2739.0,2738.0,13.18742828]
[1769781899452,0.002,2739.0,2738.2,13.18742828]
[1769781900889,0.002,2739.2,2738.5,13.18742828]
[1769781901963,0.32158418,2740.2,2738.8,13.18742828]
[1769781902284,0.002,2740.7,2739.2,13.18742828]
[1769781902464,0.002,2740.7,2739.6,13.18742828]
[1769781903252,0.002,2740.7,2739.8,13.18742828]
[1769781903875,0.002,2740.7,2739.2,13.18742828]
[1769781904072,0.002,2740.7,2739.4,13.18742828]
[1769781905220,0.002,2740.7,2739.8,13.18742828]
[1769781907807,0.002,2740.7,2739.9,13.08132711]
[1769781909430,0.0190903,2741.4,2740.5,13.08132711]
[1769781909798,0.0190903,2741.4,2740.5,13.84632711]
[1769781909995,0.0190903,2741.4,2740.6,14.42342697]
[1769781912214,0.002,2740.7,2740.6,14.42342697]
[1769781913702,0.0190903,2741.4,2740.6,14.42342697]
[1769781915760,3.6572018,2742.6,2740.6,14.42342697]
[1769781915761,0.19066638,2742.9,2741.4,13.08132711]
[1769781915911,0.19066638,2742.9,2741.6,13.08132711]
[1769781916422,13.8362864,2742.9,2741.6,13.08132711]
[1769781916818,14.74761539,2743.3,2741.6,13.08132711]
[1769781917230,2.871557,2743.2,2741.6,13.08132711]
[1769781917424,4.376194,2743.2,2741.6,13.08132711]
[1769781917738,1.91237975,2743.1,2741.8,13.08132711]
[1769781918308,13.8362864,2742.9,2741.5,13.08132711]
[1769781918612,1.91237975,2743.1,2742.0,13.08132711]
[1769781918824,13.8362864,2743.6,2742.1,27.58132711]
[1769781919117,13.8362864,2743.6,2742.2,13.08132711]
[1769781919310,0.765,2743.9,2741.9,13.08132711]
[1769781919311,13.8362864,2743.4,2741.9,13.08132711]
[1769781919510,0.91120182,2743.7,2741.9,13.08132711]
[1769781919511,0.91121745,2743.6,2741.9,13.08132711]
[1769781919707,2.24085195,2743.5,2741.9,14.38945982]
[1769781920008,2.24085195,2743.5,2742.0,13.08132711]
[1769781920507,1.47585195,2743.5,2742.0,13.09234275]
[1769781920712,17.061294,2744.2,2742.5,13.08132711]
[1769781920944,14.6012864,2744.1,2742.5,13.08132711]
[1769781921142,3.77112,2743.9,2742.5,13.08132711]
[1769781921527,3.271098,2743.9,2742.5,13.08132711]
[1769781921839,2.261608,2743.9,2742.5,13.08132711]
[1769781922010,16.44833072,2743.8,2741.9,15.80813271]
[1769781922212,13.8362864,2743.6,2742.1,13.08132711]
[1769781922413,4.40619,2743.1,2741.7,13.08132711]
[1769781922611,0.765,2743.0,2741.7,13.08132711]
[1769781923246,0.765,2742.9,2741.7,13.08132711]
[1769781923831,13.8362864,2743.2,2741.7,14.38945982]
[1769781924148,0.765,2742.8,2741.7,14.38945982]
[1769781924314,0.765,2743.2,2741.7,14.38945982]
[1769781924843,5.35650335,2743.8,2741.9,13.08132711]
[1769781924844,0.765,2743.4,2741.9,13.08132711]
[1769781925040,0.765,2743.4,2742.1,13.08132711]
[1769781925242,0.765,2743.4,2742.3,13.08132711]
[1769781925447,0.002,2743.5,2742.3,13.08132711]
[1769781925644,0.767,2743.5,2742.3,13.08132711]
[1769781927344,0.91325115,2743.5,2742.3,13.08132711]
[1769781927642,0.765,2743.4,2742.3,13.08132711]
[1769781927843,1.67628942,2743.4,2742.0,14.5]
[1769781928043,0.53233989,2743.3,2742.0,14.5]
[1769781928247,0.53233989,2743.3,2741.9,13.08132711]
[1769781928546,0.53233989,2743.3,2741.5,0.765]
[1769781928547,0.53233989,2743.3,2742.1,13.08132711]
[1769781928751,0.002,2743.5,2742.2,13.08132711]
[1769781929415,0.1024,2743.4,2741.8,13.08132711]
[1769781929837,0.1024,2743.2,2741.8,13.08132711]
[1769781930437,0.002,2743.5,2741.8,13.08132711]
[1769781930643,0.765,2743.4,2741.8,13.08132711]
[1769781930965,0.1044,2743.5,2742.0,13.08132711]
[1769781931140,0.765,2743.4,2742.0,13.08132711]
[1769781931673,1.67630304,2743.4,2742.0,13.08132711]
[1769781931869,0.1044,2743.5,2742.0,13.08132711]
[1769781932056,0.1044,2743.5,2742.0,13.09234275]
[1769781932057,0.002,2743.5,2742.0,13.09234275]
[1769781932261,0.002,2743.5,2742.2,13.08132711]
[1769781933559,0.002,2743.5,2742.4,13.08132711]
[1769781934541,0.002,2743.5,2742.6,13.08132711]
[1769781940180,13.9142106,2744.4,2742.6,13.08132711]
[1769781940181,0.002,2744.8,2743.2,13.40916868]
[1769781940680,3.64533229,2744.8,2743.2,13.40916868]
[1769781940883,0.002,2744.8,2743.4,13.40916868]
[1769781941058,13.9162106,2744.8,2743.5,1.30923428]
[1769781941380,0.765,2744.7,2743.4,13.40916868]
[1769781941878,0.002,2744.8,2743.4,13.40916868]
[1769781942786,0.002,2744.8,2743.0,13.40916868]
[1769781942787,13.9142106,2744.6,2743.0,13.40916868]
[1769781943298,5.62259,2744.5,2743.0,13.40916868]
[1769781943500,10.037815,2744.4,2743.0,13.40916868]
[1769781943807,13.9142106,2744.1,2742.6,13.40916868]
[1769781944018,2.39520256,2744.3,2743.0,13.40916868]
[1769781944156,0.86083473,2744.7,2743.0,13.40916868]
[1769781944157,14.82505695,2744.7,2743.0,13.40916868]
[1769781944358,13.9142106,2744.5,2743.0,13.40916868]
[1769781945133,2.424585,2744.6,2743.0,13.40916868]
[1769781945296,2.386331,2744.6,2743.0,13.40916868]
[1769781945491,0.91084635,2744.7,2743.0,13.40916868]
[1769781945709,2.61104424,2744.6,2743.2,13.40916868]
[1769781946122,1.84704424,2744.6,2743.2,13.40916868]
[1769781946307,0.764,2744.5,2743.2,13.40916868]
[1769781947393,0.002,2744.8,2743.2,13.40916868]
[1769781947604,0.764,2744.7,2743.2,13.40916868]
[1769781947806,0.764,2744.7,2743.1,1.34091687]
[1769781947807,0.002,2744.8,2743.4,13.40916868]
[1769781948211,0.002,2744.8,2743.6,13.40916868]
[1769781949018,13.9162106,2744.8,2743.3,0.77092158]
[1769781949497,13.9142106,2744.5,2743.0,13.40916868]
[1769781950328,0.91094592,2744.4,2743.0,13.40916868]
[1769781950699,13.9142106,2744.5,2743.0,13.40916868]
[1769781950700,14.82514685,2744.5,2743.0,13.40916868]
[1769781950901,9.883862,2744.4,2743.0,13.40916868]
[1769781951423,21.7669296,2744.4,2743.0,13.40916868]
[1769781951627,2.26778659,2744.3,2743.0,13.40916868]
[1769781952226,0.764,2744.2,2743.0,13.40916868]
[1769781952999,0.002,2744.6,2743.3,13.40916868]
[1769781953198,0.002,2744.6,2742.7,0.01101564]
[1769781953199,0.002,2744.6,2743.5,13.40916868]
[1769781953415,0.002,2744.6,2743.5,14.75008555]
[1769781955106,0.002,2744.6,2743.5,13.40916868]
[1769781956815,0.1044,2744.6,2743.2,13.40916868]
[1769781957146,14.0166106,2744.4,2742.7,13.40916868]
[1769781957351,14.6782106,2744.3,2742.7,13.40916868]
[1769781957557,1.46782106,2744.2,2742.9,13.40916868]
[1769781958622,0.764,2744.1,2742.9,13.40916868]
[1769781959530,0.764,2744.1,2742.5,13.40916868]
[1769781959531,15.58925905,2744.1,2742.5,13.40916868]
[1769781960060,1.46782106,2744.2,2742.5,13.40916868]
[1769781960248,0.764,2744.3,2742.9,13.40916868]
[1769781960427,1.01331779,2744.5,2742.9,13.40916868]
[1769781960628,0.764,2744.4,2742.9,13.40916868]
[1769781960827,0.764,2744.3,2742.9,13.40916868]
[1769781961058,0.764,2744.3,2742.5,0.24458594]
[1769781961059,0.764,2744.3,2743.1,13.40916868]
[1769781961259,1.01528477,2744.6,2743.1,13.40916868]
[1769781961260,0.764,2744.4,2743.1,13.40916868]
[1769781961759,17.1418576,2744.3,2743.0,1.34091687]
[1769781961965,0.1024,2744.2,2742.7,14.17316868]
[1769781962471,14.0166106,2744.2,2742.7,13.41016868]
[1769781962762,0.1024,2744.0,2742.7,13.41016868]
[1769781963363,0.002,2744.0,2742.7,13.41016868]
[1769781963745,0.766,2744.0,2742.7,13.41016868]
[1769781964348,1.67708514,2744.0,2742.7,13.41016868]
[1769781964673,0.766,2744.0,2742.7,13.41016868]
[1769781965580,14.0166106,2743.9,2742.7,0.001]
[1769781966163,13.9142106,2743.7,2742.7,0.001]
[1769781966338,0.1024,2743.9,2742.7,0.001]
[1769781966540,0.764,2743.6,2742.7,0.001]
[1769781967438,12.90620689,2743.4,2741.6,12.78120561]
[1769781967742,0.01101564,2744.2,2742.3,12.78120561]
[1769781967939,13.81929026,2744.0,2742.4,12.78120561]
[1769781968166,0.1024,2743.7,2742.4,12.78120561]
[1769781968873,0.764,2743.6,2742.4,12.78120561]
[1769781969284,0.002,2744.0,2742.4,12.78120561]
[1769781969493,0.764,2743.8,2742.6,12.78120561]
[1769781970376,17.71213689,2743.7,2742.5,1.27812056]
[1769781970675,12.90620689,2743.7,2742.2,12.78120561]
[1769781973373,13.81739328,2743.7,2742.2,12.78120561]
[1769781973774,12.90620689,2743.7,2742.2,12.78120561]
[1769781975390,13.81738661,2743.7,2742.2,12.78120561]
[1769781975756,12.90620689,2743.5,2741.9,12.78120561]
[1769781975989,15.47429989,2743.2,2741.9,12.78120561]
[1769781976188,13.67020689,2743.1,2741.7,1.35452056]
[1769781976691,12.90620689,2742.9,2741.3,12.78120561]
[1769781976860,13.00860689,2742.8,2741.3,12.78120561]
[1769781977977,13.92008892,2742.8,2741.3,12.78120561]
[1769781978367,12.90620689,2742.4,2740.9,12.78120561]
[1769781978606,13.67020689,2742.3,2740.9,12.78120561]
[1769781978800,1.36702069,2742.2,2741.0,1.5241121]
[1769781978958,14.27322758,2742.2,2740.9,12.78120561]
[1769781979163,14.27322758,2742.2,2740.6,12.78120561]
[1769781979587,15.18491856,2742.2,2740.6,12.78120561]
[1769781979797,15.18491856,2742.2,2740.7,0.2335703]
[1769781979996,14.27322758,2742.2,2740.6,12.78120561]
[1769781980208,14.40992965,2742.1,2740.7,14.13572617]
[1769781980816,14.40992965,2742.1,2740.4,12.78120561]
[1769781980986,14.40992965,2742.1,2740.5,0.2335703]
[1769781981188,14.40992965,2742.1,2740.5,13.01477591]
[1769781981615,0.91174325,2742.0,2740.5,13.01477591]
[1769781981806,13.81795014,2742.0,2740.5,13.01477591]
[1769781981989,1.38179501,2741.9,2740.6,1.30147759]
[1769781983325,14.2880019,2741.9,2740.6,1.30147759]
[1769781983883,14.2880019,2741.9,2740.4,0.2335703]
[1769781984117,14.2880019,2741.9,2740.4,13.01477591]
[1769781984518,15.19978058,2741.9,2740.4,13.01477591]
[1769781984820,15.19978058,2741.9,2740.4,12.78120561]
[1769781984821,14.2880019,2741.9,2740.4,12.78120561]
[1769781985322,0.1024,2741.8,2740.4,12.78120561]
[1769781985513,1.53021959,2741.7,2740.5,1.27812056]
[1769781985824,1.53021959,2741.7,2740.8,12.78120561]
[1769781986161,0.765,2742.1,2740.8,12.78120561]
[1769781987418,13.00860689,2742.0,2740.5,14.05932617]
[1769781987624,13.00860689,2742.0,2740.6,0.2335703]
[1769781987819,14.28356758,2741.9,2740.6,0.2335703]
[1769781988018,13.81801665,2741.8,2740.3,0.2335703]
[1769781988531,12.90620689,2741.8,2740.3,0.2335703]
[1769781988717,12.90620689,2741.8,2740.3,12.78120561]
[1769781989234,2.28915897,2741.9,2740.3,12.78120561]
[1769781989235,0.765,2741.7,2740.3,12.78120561]
[1769781989534,13.67120689,2741.7,2740.3,14.05932617]
[1769781989733,1.01416743,2742.0,2740.3,14.05932617]
[1769781989941,0.765,2741.9,2740.8,12.78220561]
[1769781990450,13.67120689,2741.9,2740.8,0.001]
[1769781992345,14.58298447,2741.9,2740.8,0.001]
[1769781992546,1.45829845,2741.8,2740.8,0.001]
[1769781993219,14.36450534,2741.8,2740.8,0.001]
[1769781994341,15.2763153,2741.8,2740.8,0.001]
[1769781997616,13.22865938,2741.3,2740.0,0.001]
[1769781997966,15.32676532,2741.2,2740.0,0.001]
[1769781998252,14.24310199,2741.1,2740.0,0.001]
[1769781999948,14.24310199,2741.1,2739.7,12.97713247]
[1769782001047,0.1024,2740.8,2739.3,12.97713247]
[1769782001252,0.765,2740.7,2739.3,12.97713247]
[1769782001439,0.765,2740.7,2739.4,14.27484572]
[1769782002855,1.67717934,2740.7,2739.4,14.27484572]
[1769782003928,0.765,2740.7,2739.4,14.27484572]
[1769782004755,1.6771773,2740.7,2739.4,14.27484572]
[1769782006358,14.90583668,2740.7,2739.4,14.27484572]
[1769782006558,14.90583668,2740.7,2738.9,0.24458594]
[1769782006559,13.33105938,2740.2,2738.9,12.97713247]
[1769782006723,0.8674,2740.1,2738.9,12.97713247]
[1769782007639,1.77977625,2740.1,2738.9,12.97713247]
[1769782007825,15.00843563,2740.1,2738.9,12.97713247]
[1769782008022,1.50084356,2740.0,2738.9,12.97713247]
[1769782008266,14.72950294,2740.0,2738.9,12.97713247]
[1769782008644,14.72950294,2740.0,2738.5,0.2335703]
[1769782008932,14.72950294,2740.0,2738.6,12.97713247]
[1769782009342,1.50084356,2740.0,2738.7,12.97713247]
[1769782009547,0.1024,2740.2,2738.9,12.97713247]
[1769782009747,0.765,2740.1,2738.9,12.97713247]
[1769782011271,2.395942,2739.6,2738.0,12.97713247]
[1769782011477,1.0148342,2739.5,2738.2,12.97713247]
[1769782011799,13.22865938,2740.2,2738.2,12.97713247]
[1769782012074,13.22865938,2740.2,2738.8,12.97713247]
[1769782012075,0.8674,2740.1,2738.8,12.97713247]
[1769782012431,1.43416594,2740.3,2739.0,12.97713247]
[1769782012636,2.19916594,2740.3,2739.2,12.97713247]
[1769782014563,0.002,2740.1,2739.2,12.97713247]
[1769782014768,0.22211659,2740.1,2739.3,0.2335703]
[1769782015372,0.22211659,2740.1,2739.3,13.21070277]
[1769782017245,0.002,2740.1,2739.3,13.21070277]
[1769782020681,14.14064789,2741.3,2739.5,12.97713247]
[1769782020900,14.14064789,2741.3,2739.3,0.765]
[1769782020901,0.1024,2741.0,2739.9,12.97713247]
[1769782021055,0.765,2741.0,2739.9,12.97713247]
[1769782021249,0.765,2741.0,2740.0,14.27484572]
[1769782021250,0.8674,2741.0,2740.0,14.27484572]
[1769782022812,0.002,2741.4,2740.4,12.97713247]
[1769782023079,0.002,2741.4,2740.9,13.21070277]
[1769782023291,0.002,2741.6,2740.9,13.21070277]
[1769782023445,0.002,2741.6,2740.6,0.2335703]
[1769782023645,0.002,2741.6,2740.7,13.73550489]
[1769782024572,0.30133303,2742.0,2741.0,13.21070277]
[1769782024780,0.002,2742.9,2741.0,13.21070277]
[1769782024781,0.002,2742.9,2741.6,0.2335703]
[1769782024983,0.767,2742.9,2741.8,0.2335703]
[1769782025165,0.767,2742.9,2741.7,12.97713247]
[1769782025369,1.39956594,2742.8,2741.7,12.97713247]
[1769782025767,0.767,2742.9,2741.7,12.97713247]
[1769782027118,0.002,2742.9,2741.7,12.97713247]
[1769782027305,0.765,2742.8,2741.7,12.97713247]
[1769782028772,0.002,2742.7,2741.4,0.2335703]
[1769782028972,13.71286514,2742.7,2741.4,0.2335703]
[1769782029283,1.44778651,2742.6,2741.4,15.51217351]
[1769782029485,0.002,2742.7,2741.4,15.51217351]
[1769782031332,0.002,2742.7,2741.4,16.03138355]
[1769782031533,0.002,2742.7,2742.0,0.2335703]
[1769782031821,0.002,2742.7,2742.1,0.2335703]
[1769782032015,0.002,2742.7,2742.1,14.21436026]
[1769782032192,0.002,2742.7,2742.1,15.51207351]
[1769782032394,0.002,2742.7,2741.7,0.2335703]
[1769782033534,0.002,2742.7,2741.5,13.98078996]
[1769782033822,13.71286514,2742.7,2741.5,13.98078996]
[1769782034222,13.71086514,2742.3,2740.8,13.98078996]
[1769782034408,13.71086514,2742.3,2740.2,0.01101564]
[1769782034409,13.71086514,2742.0,2740.0,13.98078996]
[1769782034610,13.81326514,2741.8,2740.0,13.98078996]
[1769782034820,2.779792,2741.7,2740.0,13.98078996]
[1769782035201,16.49065714,2741.7,2740.0,13.98078996]
[1769782035424,13.71086514,2741.7,2740.0,13.98078996]
[1769782035719,13.71086514,2741.4,2740.1,1.398079]
[1769782035922,14.47586514,2741.3,2740.1,1.398079]
[1769782036123,6.063259,2741.1,2739.3,15.02727829]
[1769782036290,6.063259,2741.1,2739.4,0.2335703]
[1769782036291,5.413276,2741.1,2739.4,0.2335703]
[1769782036494,19.12414114,2741.1,2739.5,13.98078996]
[1769782036695,14.15235589,2741.1,2739.5,13.98078996]
[1769782036905,15.13634073,2741.0,2739.6,1.398079]
[1769782037496,13.71086514,2740.8,2739.3,1.04648833]
[1769782037697,13.71086514,2740.8,2739.3,15.02727829]
[1769782037899,13.71086514,2740.8,2739.4,0.2335703]
[1769782038097,14.62300787,2740.8,2739.4,0.2335703]
[1769782038513,13.71086514,2740.8,2739.4,14.21436026]
[1769782038734,1.42547559,2741.0,2739.4,14.21436026]
[1769782038735,1.46229915,2740.7,2739.6,13.98078996]
[1769782038918,0.1024,2740.9,2739.6,13.98078996]
[1769782039125,0.765,2740.8,2739.6,13.98078996]
[1769782039428,13.71086514,2740.6,2739.3,15.02727829]
[1769782039629,0.91219701,2740.7,2739.3,15.02727829]
[1769782039929,3.182,2740.7,2739.3,15.02727829]
[1769782040134,1.2509149,2740.6,2739.4,15.48351779]
[1769782040340,0.765,2740.6,2739.4,15.48351779]
[1769782040515,14.62301415,2740.8,2739.8,0.001]
[1769782040840,0.765,2740.7,2739.8,0.001]
[1769782041904,0.912209,2740.6,2739.8,0.001]
[1769782043433,22.11493714,2740.5,2739.3,1.04648833]
[1769782043596,14.24345701,2740.5,2739.3,1.04648833]
[1769782043996,0.91227558,2740.4,2739.3,1.04648833]
[1769782044200,13.71086514,2740.3,2739.3,1.04648833]
[1769782047837,14.62317521,2740.3,2738.9,0.2335703]
[1769782048038,1.46231752,2740.2,2739.0,1.42143603]
[1769782048237,0.765,2740.1,2739.0,1.42143603]
[1769782051350,0.765,2740.1,2738.8,13.98078996]
[1769782051351,13.71086514,2740.0,2738.8,13.98078996]
[1769782051544,0.91244205,2739.9,2738.8,13.98078996]
[1769782052114,0.91244205,2739.9,2738.0,0.01101564]
[1769782052115,14.62330719,2739.9,2738.1,13.98078996]
[1769782052319,13.71086514,2739.7,2738.1,13.98078996]
[1769782052519,11.145414,2739.6,2738.1,13.98078996]
[1769782052719,8.414424,2739.4,2738.1,15.37896896]
[1769782053532,13.71086514,2739.3,2738.1,13.98078996]
[1769782053945,14.62351274,2739.3,2738.1,13.98078996]
[1769782055148,14.62351274,2739.3,2739.2,0.001]
[1769782055330,14.62351274,2739.3,2738.1,13.98078996]
[1769782056456,14.62351274,2739.3,2737.8,12.83548292]
[1769782056621,14.69297051,2739.2,2737.8,12.83548292]
[1769782057018,15.13446126,2739.2,2737.8,12.83548292]
[1769782057253,13.69595458,2739.0,2737.7,0.001]
[1769782057454,10.24931175,2739.1,2737.2,13.450135]
[1769782057455,13.69595458,2738.6,2737.2,13.450135]
[1769782057671,3.08964651,2738.5,2737.3,13.451135]
[1769782057968,3.08962733,2738.5,2737.3,13.451135]
[1769782058323,3.08962121,2738.5,2737.3,13.451135]
[1769782058519,16.78557579,2738.5,2737.3,13.451135]
[1769782059156,15.87266664,2738.5,2737.3,13.451135]
[1769782059353,15.37451103,2738.4,2737.3,0.001]
[1769782059659,13.69595458,2738.0,2736.5,13.450135]
[1769782059854,2.518287,2737.9,2736.5,13.450135]
[1769782060756,16.21424158,2737.9,2736.5,13.450135]
[1769782061061,13.69595458,2737.9,2736.5,13.450135]
[1769782061239,1.46090364,2737.8,2736.5,16.2451485]
[1769782061561,0.766,2737.7,2736.5,13.450135]
[1769782062467,15.37513402,2737.7,2736.5,13.450135]
[1769782062779,15.37513402,2737.7,2735.8,13.450135]
[1769782062780,13.69595458,2737.3,2735.8,13.450135]
[1769782062923,13.69595458,2737.2,2735.8,13.450135]
[1769782063127,0.766,2737.1,2735.8,13.450135]
[1769782063330,1.44619546,2737.0,2735.8,14.7953485]
[1769782066602,1.44619546,2737.0,2736.0,0.001]
[1769782066899,14.0518801,2738.3,2736.3,13.450135]
[1769782067098,0.1024,2737.9,2736.3,13.450135]
[1769782067655,13.79835458,2737.9,2736.3,13.450135]
[1769782068801,14.71147496,2737.9,2736.3,13.450135]
[1769782069185,0.1024,2737.7,2736.3,13.450135]
[1769782069386,1.37983546,2737.6,2736.5,13.450135]
[1769782069792,0.1024,2737.7,2736.5,13.450135]
[1769782071296,0.1024,2737.8,2736.5,13.450135]
[1769782073368,13.79835458,2737.6,2736.2,13.450135]
[1769782073700,0.1024,2737.2,2736.0,0.001]
[1769782073900,0.766,2737.1,2736.0,0.001]
[1769782074171,14.46195458,2737.1,2736.0,0.001]
[1769782074522,15.05086314,2737.0,2735.6,13.452135]
[1769782074717,14.13744533,2737.0,2735.6,13.452135]
[1769782074880,1.58168463,2736.9,2735.6,13.452135]
[1769782075784,15.27763921,2736.9,2735.6,13.452135]
[1769782076393,1.58168463,2736.9,2735.6,13.452135]
[1769782076588,10.303688,2736.9,2735.6,13.452135]
[1769782076803,0.1024,2736.9,2735.6,13.452135]
[1769782077901,17.36023667,2737.3,2735.8,13.450135]
[1769782077902,3.328272,2737.3,2735.8,13.450135]
[1769782078106,0.1024,2737.2,2735.8,13.450135]
[1769782078407,4.9466,2737.1,2735.8,14.7953485]
[1769782078813,0.1024,2737.2,2735.8,14.7953485]
[1769782078973,0.1024,2737.2,2735.8,14.7973485]
[1769782080740,0.001,2737.6,2736.0,13.450135]
[1769782081058,0.766,2737.5,2736.2,13.450135]
[1769782081345,2.82393,2737.4,2736.2,13.450135]
[1769782081638,0.766,2737.5,2736.2,13.450135]
[1769782082046,2.47173,2737.4,2736.2,13.450135]
[1769782082234,0.766,2737.5,2736.2,13.450135]
[1769782082429,1.44739702,2737.4,2736.3,14.93198555]
[1769782083322,1.44739702,2737.4,2736.3,13.450135]
[1769782085341,0.766,2737.5,2736.3,13.450135]
[1769782085543,2.923297,2737.4,2736.3,13.450135]
[1769782085937,0.766,2737.5,2736.3,13.450135]
[1769782087560,3.163671,2737.4,2736.3,13.450135]
[1769782088151,3.09672465,2737.4,2736.3,13.450135]
[1769782088345,0.38627247,2737.3,2736.3,14.7951485]
[1769782088543,0.766,2737.5,2736.3,14.7951485]
[1769782090559,14.33275,2737.5,2736.3,14.7951485]
[1769782090759,13.56675,2737.3,2735.8,0.002]
[1769782090964,13.56675,2737.3,2735.8,13.27751724]
[1769782091330,13.56675,2736.9,2735.8,0.002]
[1769782091539,13.56675,2736.7,2735.6,0.002]
[1769782091764,30.51038075,2736.6,2735.5,0.002]
[1769782091942,13.66915,2736.6,2735.5,0.002]
[1769782092344,2.150523,2736.5,2735.5,0.002]
[1769782092532,2.150523,2736.5,2735.8,0.002]
[1769782092732,1.67332259,2736.4,2735.8,0.002]
[1769782093156,1.67332259,2736.4,2735.5,0.002]
[1769782099881,15.24007259,2736.4,2735.5,0.002]
[1769782100780,1.67332259,2736.4,2735.5,0.002]
[1769782100979,2.566226,2736.4,2735.5,0.002]
[1769782101180,0.91357673,2736.5,2735.5,0.002]
[1769782101376,1.01596419,2736.6,2735.5,13.27751724]
[1769782101581,1.01596419,2736.6,2735.5,0.002]
[1769782101582,2.636982,2736.4,2735.5,0.002]
[1769782101961,13.56675,2736.5,2735.5,0.002]
[1769782102162,1.45827142,2736.4,2735.5,0.002]
[1769782102352,2.143935,2736.3,2735.5,0.002]
[1769782102664,0.766,2736.2,2735.5,0.002]
[1769782103088,0.766,2736.2,2735.5,13.27751724]
[1769782103555,0.766,2736.5,2735.5,13.27751724]
[1769782103884,0.766,2736.5,2735.5,14.60546896]
[1769782105292,0.766,2736.5,2735.7,13.27751724]
[1769782105691,0.001,2736.0,2735.7,13.27751724]
[1769782106264,0.766,2736.5,2735.7,13.27751724]
[1769782107492,14.33275,2736.5,2735.5,0.002]
[1769782107791,1.52462977,2736.4,2735.5,0.002]
[1769782108657,1.52462977,2736.4,2735.5,13.27751724]
[1769782108861,0.766,2736.5,2735.5,13.27751724]
[1769782110365,0.766,2736.5,2734.7,0.002]
[1769782110366,2.087032,2736.2,2735.2,13.27551724]
[1769782110566,13.56675,2736.3,2735.2,13.27551724]
[1769782110766,0.98431403,2736.2,2735.2,13.27551724]
[1769782111066,1.4551064,2736.1,2735.2,13.27551724]
[1769782111695,1.4551064,2736.1,2735.2,13.22551724]
[1769782114394,0.1024,2736.0,2734.8,13.27551724]
[1769782115880,0.1024,2736.1,2734.8,13.27551724]
[1769782116583,0.1024,2736.1,2734.7,0.002]
[1769782116584,13.43032662,2735.9,2734.7,0.002]
[1769782116788,17.11563426,2735.8,2734.7,0.002]
[1769782117193,17.11563426,2735.8,2734.7,12.80322412]
[1769782117407,13.63617991,2735.6,2734.5,0.002]
[1769782117605,13.63617991,2735.2,2734.0,0.002]
[1769782117812,16.0126768,2735.1,2734.0,0.002]
[1769782118515,13.63617991,2734.9,2734.0,0.002]
[1769782118716,13.63617991,2734.9,2733.4,0.002]
[1769782118896,13.63617991,2734.7,2733.4,12.80322412]
[1769782120426,1.60949689,2735.1,2733.6,12.80122412]
[1769782120719,0.767,2735.0,2733.8,12.80122412]
[1769782127798,0.1024,2735.6,2733.8,12.80122412]
[1769782127799,13.73857991,2735.6,2733.8,12.80122412]
[1769782128131,13.73857991,2735.6,2734.0,12.80122412]
[1769782128132,0.767,2735.6,2734.0,12.80122412]
[1769782128331,0.767,2735.6,2734.2,12.80122412]
[1769782128942,13.63617991,2735.9,2734.2,12.80122412]
[1769782129132,0.001,2736.0,2734.4,12.80122412]
[1769782129431,0.768,2736.0,2734.4,12.80122412]
[1769782129735,0.768,2736.0,2734.6,12.80122412]
[1769782131344,16.10357991,2735.9,2734.6,12.80122412]
[1769782131525,13.63617991,2735.9,2734.6,12.80122412]
[1769782131720,0.001,2735.7,2734.6,12.80122412]
[1769782138947,0.001,2736.0,2734.8,12.80122412]
[1769782139122,0.001,2736.0,2735.0,12.80122412]
[1769782144458,0.001,2735.8,2735.0,12.80122412]
[1769782149868,0.001,2735.8,2735.1,13.50144495]
[1769782150767,0.001,2736.0,2735.2,13.50144495]
[1769782154447,0.001,2736.0,2735.4,13.50144495]
[1769782154678,0.001,2736.0,2735.4,14.78156736]
[1769782156268,0.001,2735.8,2735.4,14.78156736]
[1769782167060,0.001,2735.8,2735.2,0.002]
[1769782167061,13.86151228,2735.8,2735.2,0.002]
[1769782167266,13.86151228,2735.8,2735.2,0.768]
[1769782168592,13.86151228,2735.8,2735.6,0.002]
[1769782170772,0.001,2735.8,2735.6,0.002]
[1769782174393,13.86051228,2737.1,2735.7,13.50144495]
[1769782174603,13.86051228,2737.1,2735.9,13.50144495]
[1769782175866,14.30200303,2737.1,2735.9,13.50144495]
[1769782176102,13.86051228,2736.9,2735.9,13.50144495]
[1769782177788,1.35758844,2737.2,2735.9,13.50144495]
[1769782178105,0.59158844,2737.2,2735.9,13.50144495]
[1769782178277,0.59158844,2737.2,2736.1,13.83061752]
[1769782180396,0.001,2737.0,2736.1,13.83061752]
[1769782183680,0.001,2737.0,2736.2,13.83061752]
[1769782183881,0.001,2737.0,2736.4,13.83061752]
[1769782184291,0.001,2737.6,2736.5,14.06418782]
[1769782184505,0.001,2737.6,2736.8,13.83061752]
[1769782184694,0.001,2737.6,2737.0,13.83061752]
[1769782187620,0.001,2737.6,2736.0,13.83061752]